bitfinex-derivatives/quotes_SOLF0:USTF0_20250307
["timestamp","ask_amount","ask_price","bid_price","bid_amount"]
[1741313322574,5.8485,140.99,140.89,24.38433357]
[1741313322780,0.04646218,140.91,140.9,7.0967]
[1741313322972,5.8485,140.99,140.93,0.05163889]
[1741313323178,5.8485,140.99,140.89,24.38433357]
[1741313323378,7.0954,140.94,140.89,24.38433357]
[1741313323580,7.0954,140.94,140.93,0.04491514]
[1741313323771,0.04734478,140.93,140.89,24.38433357]
[1741313323975,7.14294478,140.93,140.92,0.05023483]
[1741313324181,7.14294478,140.93,140.87,44.1384]
[1741313324374,0.04734478,140.93,140.91,0.04929747]
[1741313324579,0.04734478,140.93,140.84,234.3]
[1741313324786,37.02,140.94,140.84,271.32]
[1741313324980,2.0112,140.93,140.84,271.32]
[1741313325286,7.0986,140.87,140.84,271.32]
[1741313325483,7.0986,140.87,140.84,234.3]
[1741313325680,7.0984,140.88,140.84,234.3]
[1741313325882,0.05154791,140.87,140.84,234.34942893]
[1741313326785,0.05154791,140.87,140.84,0.04942893]
[1741313326982,7.0996,140.85,140.84,0.04942893]
[1741313330491,3.8663,140.86,140.78,271.24]
[1741313330789,2.0238,140.84,140.78,271.24]
[1741313330981,2.0238,140.84,140.76,31.48833357]
[1741313330982,7.1024,140.8,140.76,61.38433357]
[1741313331183,2.0238,140.84,140.72,337.01632047]
[1741313331385,2.0238,140.84,140.73,46.61527796]
[1741313331588,7.103,140.79,140.77,0.0476913]
[1741313332399,0.05245784,140.8,140.77,0.0476913]
[1741313334597,0.05245784,140.8,140.78,7.103]
[1741313334987,0.05245784,140.8,140.77,37.0276913]
[1741313335391,0.05245784,140.8,140.77,0.0476913]
[1741313338187,0.05245784,140.8,140.79,7.1026]
[1741313338383,0.05245784,140.8,140.77,0.0476913]
[1741313339498,0.05245784,140.8,140.78,7.103]
[1741313340786,0.05245784,140.8,140.77,0.0476913]
[1741313343791,0.05245784,140.8,140.72,249.51434973]
[1741313343996,0.05245784,140.8,140.72,234.26]
[1741313344192,0.05245784,140.8,140.71,44.0665]
[1741313344409,7.1045,140.76,140.71,44.0665]
[1741313344804,2.0734,140.8,140.71,36.96]
[1741313344998,0.04744455,140.75,140.72,0.04933105]
[1741313345497,0.04744455,140.75,140.72,7.15533105]
[1741313346503,0.04744455,140.75,140.74,7.1051]
[1741313347005,2.0238,140.84,140.74,24.42241953]
[1741313347301,4.0695,140.84,140.75,36.94]
[1741313347505,2.0238,140.84,140.82,7.1009]
[1741313348095,2.07367296,140.84,140.82,0.04700985]
[1741313349107,0.04987296,140.84,140.82,0.04700985]
[1741313350207,0.04987296,140.84,140.77,24.42241953]
[1741313350803,0.04987296,140.84,140.8,24.42241953]
[1741313351005,0.04987296,140.84,140.8,61.34241953]
[1741313351309,0.04987296,140.84,140.81,0.05407578]
[1741313351919,0.04987296,140.84,140.75,234.38]
[1741313351920,0.04987296,140.84,140.75,271.3]
[1741313352101,7.1021,140.8,140.75,271.3]
[1741313352507,7.1015,140.82,140.77,7.1035]
[1741313353108,0.05119355,140.81,140.78,0.04637518]
[1741313353795,0.05119355,140.81,140.8,7.1021]
[1741313353995,0.00689355,140.81,140.8,7.1021]
[1741313354208,3.8525,140.89,140.8,3.56]
[1741313354511,3.8525,140.89,140.84,7.0996]
[1741313354705,3.8525,140.89,140.83,36.9]
[1741313355002,3.8525,140.89,140.86,7.0989]
[1741313355399,0.05110936,140.89,140.87,7.0982]
[1741313355599,0.05110936,140.89,140.86,0.04852976]
[1741313355800,0.05110936,140.89,140.87,36.9]
[1741313356011,0.05110936,140.89,140.88,24.42241953]
[1741313356510,0.05110936,140.89,140.87,36.9]
[1741313356905,0.05110936,140.89,140.87,43.9981]
[1741313357507,78.8205984,140.99,140.95,7.0944]
[1741313357712,78.8205984,140.99,140.96,61.30241953]
[1741313357911,29.0413984,140.99,140.98,24.42241953]
[1741313358105,191.81664354,141.01,140.98,7.093]
[1741313358305,1.9325,141.09,140.99,24.42241953]
[1741313358511,1.9325,141.09,141.0,36.88]
[1741313358712,0.05080972,141.04,141.02,0.0514374]
[1741313363812,0.05080972,141.04,140.99,36.84]
[1741313364013,0.05080972,141.04,140.96,36.84]
[1741313364713,7.0921,141.0,140.96,36.84]
[1741313364903,7.0921,141.0,140.99,0.05289204]
[1741313366627,0.05343237,141.01,140.99,0.05289204]
[1741313367121,7.092,141.0,140.99,0.05289204]
[1741313367527,0.05343237,141.01,140.99,0.05289204]
[1741313369927,7.092,141.0,140.99,0.05289204]
[1741313370118,0.00563237,141.01,140.99,28.01531157]
[1741313370430,0.00563237,141.01,141.0,43.892]
[1741313370620,0.00563237,141.01,141.0,47.432]
[1741313370815,0.00563237,141.01,141.0,40.34]
[1741313371025,0.00563237,141.01,141.0,36.8]
[1741313371521,0.00563237,141.01,140.99,0.05289204]
[1741313373031,7.092,141.0,140.99,0.05289204]
[1741313373918,7.09723237,141.01,140.99,0.05289204]
[1741313374119,0.00563237,141.01,140.99,0.05289204]
[1741313374629,7.092,141.0,140.99,0.05289204]
[1741313376731,0.00563237,141.01,140.93,234.28]
[1741313376926,63.11591953,141.03,140.91,36.76]
[1741313377133,7.0944,140.96,140.91,36.76]
[1741313377330,63.11591953,141.03,140.91,36.76]
[1741313377624,7.0957,140.93,140.88,61.18241953]
[1741313377820,7.0957,140.93,140.89,0.05058345]
[1741313378023,0.05450273,140.92,140.89,0.05058345]
[1741313378223,11.0254,140.97,140.88,61.18241953]
[1741313378425,0.0523267,140.92,140.89,0.04875603]
[1741313379032,61.18241953,141.05,140.91,24.42241953]
[1741313379228,7.0919,141.01,140.92,36.76]
[1741313379529,3.9584,141.03,140.92,36.76]
[1741313379925,7.0929,140.99,140.92,36.76]
[1741313380233,0.0540266,140.99,140.96,0.05336468]
[1741313381224,7.0931,140.98,140.96,0.05336468]
[1741313381528,0.0540266,140.99,140.96,0.05336468]
[1741313383022,7.0934,140.98,140.96,0.05336468]
[1741313383628,7.0935,140.97,140.96,0.05336468]
[1741313384138,7.0931,140.98,140.96,0.05336468]
[1741313385132,0.0540266,140.99,140.96,0.05336468]
[1741313385936,0.20112743,140.99,140.96,0.05336468]
[1741313387837,0.20112743,140.99,140.96,36.79336468]
[1741313388041,0.20112743,140.99,140.98,7.093]
[1741313388344,0.20112743,140.99,140.96,36.79336468]
[1741313388742,0.20112743,140.99,140.97,7.0934]
[1741313389142,0.20112743,140.99,140.96,36.79336468]
[1741313389752,0.14692095,141.02,140.97,6.41106226]
[1741313389956,0.14692095,141.02,140.97,30.83348179]
[1741313390459,0.14692095,141.02,141.01,7.0915]
[1741313391058,0.14692095,141.02,141.0,36.7681296]
[1741313391255,0.14692095,141.02,141.0,43.8600296]
[1741313391454,0.14692095,141.02,141.0,36.7681296]
[1741313391658,0.14692095,141.02,141.0,43.8601296]
[1741313391858,0.14692095,141.02,141.0,36.7681296]
[1741313392360,0.14692095,141.02,141.01,7.0915]
[1741313393564,0.09582095,141.02,141.01,7.0915]
[1741313393764,0.14465112,141.05,141.0,75.02247825]
[1741313393961,0.14465112,141.05,141.02,7.091]
[1741313394459,0.14465112,141.05,141.01,7.0914]
[1741313394664,0.14465112,141.05,141.0,75.02247825]
[1741313394862,0.14465112,141.05,141.01,80.52695848]
[1741313395165,0.05325031,141.04,141.01,80.52695848]
[1741313395965,0.05325031,141.04,141.01,87.61805848]
[1741313396166,0.05325031,141.04,141.01,80.52695848]
[1741313396757,0.05325031,141.04,141.0,43.1378383]
[1741313397659,0.05325031,141.04,140.99,28.57259248]
[1741313397863,194.0,141.03,140.98,24.80138531]
[1741313398264,7.0925,140.99,140.98,24.80138531]
[1741313398462,194.0,141.03,140.98,24.80138531]
[1741313398966,0.04915328,141.02,140.99,1.998e-05]
[1741313399263,0.04915328,141.02,140.98,88.89400239]
[1741313399264,7.0925,140.99,140.98,88.89400239]
[1741313399467,7.0925,140.99,140.98,67.26150239]
[1741313400567,7.0925,140.99,140.98,40.92830239]
[1741313400762,7.0925,140.99,140.98,3.52500239]
[1741313400962,7.0925,140.99,140.98,2.39e-06]
[1741313401370,36.68,141.01,140.97,0.05109196]
[1741313401371,7.093,140.98,140.97,0.05109196]
[1741313401767,7.093,140.98,140.97,9.196e-05]
[1741313403072,10.633,140.98,140.97,9.196e-05]
[1741313403266,3.54,140.98,140.88,42.5908]
[1741313403472,24.35372818,140.99,140.88,5.9308]
[1741313404570,0.04792384,140.95,140.92,0.05046094]
[1741313405472,7.0955,140.93,140.92,0.05046094]
[1741313406058,36.70792384,140.95,140.85,274.6401]
[1741313406261,36.66,140.95,140.85,274.6401]
[1741313406474,16.11625124,140.99,140.87,24.35372818]
[1741313406674,16.11625124,140.99,140.88,2.042]
[1741313406975,52.77625124,141.01,140.89,36.66]
[1741313407170,0.05247403,140.95,140.92,0.04930664]
[1741313407375,52.77625124,141.04,140.93,36.66]
[1741313407564,16.11625124,141.04,140.94,238.198]
[1741313407869,78.69312223,141.05,140.96,24.35372818]
[1741313408068,78.69312223,141.05,140.97,36.64]
[1741313408269,7.0902,141.04,140.97,36.64]
[1741313408465,78.69312223,141.05,141.0,0.04478525]
[1741313408672,0.04842338,141.02,141.0,0.04478525]
[1741313409868,7.13982338,141.02,141.0,0.04478525]
[1741313410068,7.13982338,141.02,140.94,2.056]
[1741313410069,27.94215156,141.02,140.94,2.056]
[1741313410270,24.40215156,141.02,140.94,2.056]
[1741313411371,24.40215156,141.02,140.97,0.04981359]
[1741313411872,24.40215156,141.02,140.89,7.0975]
[1741313412068,24.35372818,140.99,140.89,1.9477]
[1741313412274,36.64,140.98,140.89,1.9477]
[1741313413170,0.05267874,140.95,140.92,0.0516808]
[1741313413672,7.0955,140.93,140.92,0.0516808]
[1741313414663,0.05267874,140.95,140.92,0.0516808]
[1741313417279,0.05267874,140.95,140.93,7.0951]
[1741313417675,0.05267874,140.95,140.92,0.0516808]
[1741313418984,0.05267874,140.95,140.92,7.1473808]
[1741313419282,0.05267874,140.95,140.92,0.0516808]
[1741313419577,194.0,141.01,140.93,2.0754]
[1741313419764,36.6,141.02,140.93,2.0754]
[1741313420172,36.6,141.02,140.98,7.0929]
[1741313420379,36.6,141.02,140.94,2.0388]
[1741313420681,7.0924,141.0,140.94,9.1337]
[1741313420873,0.04968938,140.99,140.97,0.04541414]
[1741313421776,0.04968938,140.99,140.97,7.13881414]
[1741313422170,0.04968938,140.99,140.97,0.04541414]
[1741313422874,0.04968938,140.99,140.97,7.13891414]
[1741313423075,5.04968938,140.99,140.97,0.04541414]
[1741313423477,5.04968938,140.99,140.98,7.093]
[1741313423880,1.92808938,140.99,140.98,7.093]
[1741313424477,0.14465112,141.05,140.97,0.04541414]
[1741313424877,0.14465112,141.05,140.99,24.35372818]
[1741313425190,5.94e-05,141.02,141.0,2.0764]
[1741313425685,5.94e-05,141.02,141.01,7.0915]
[1741313428781,0.14392376,141.06,141.0,2.12685515]
[1741313429086,0.14339861,141.08,141.02,24.35372818]
[1741313429284,0.14339861,141.08,141.03,36.56]
[1741313429989,0.14339861,141.08,141.04,7.13882379]
[1741313430289,0.04693553,141.06,141.04,0.04922379]
[1741313430689,0.04693553,141.06,141.05,7.0895]
[1741313432190,2.07065093,141.07,141.04,0.04922379]
[1741313432894,2.07065093,141.07,141.06,7.089]
[1741313433190,0.19717864,141.08,141.04,0.04922379]
[1741313433394,0.19717864,141.08,141.07,7.0885]
[1741313434184,0.19717864,141.08,141.06,7.0886]
[1741313434386,0.19717864,141.08,141.04,0.04922379]
[1741313435691,0.19717864,141.08,141.06,7.0889]
[1741313436402,0.19717864,141.08,141.07,7.0885]
[1741313438205,0.19717864,141.08,141.05,7.0894]
[1741313439298,0.19717864,141.08,141.04,0.04922379]
[1741313439503,0.19717864,141.08,141.04,7.13882379]
[1741313439702,0.19717864,141.08,141.04,0.04922379]
[1741313440195,0.19717864,141.08,141.07,7.0885]
[1741313441103,0.19717864,141.08,141.06,7.0889]
[1741313442001,0.19717864,141.08,141.07,7.0885]
[1741313443496,0.14370619,141.09,141.05,15.1874725]
[1741313443701,0.14395538,141.1,141.07,15.1874725]
[1741313444003,0.14208649,141.12,141.09,15.1874725]
[1741313444205,0.14208649,141.12,141.11,7.0865]
[1741313444399,0.14684122,141.13,141.09,15.1874725]
[1741313444704,0.14684122,141.13,141.12,7.086]
[1741313445312,0.14684122,141.13,141.11,7.0864]
[1741313445608,0.14684122,141.13,141.1,2.00373613]
[1741313445807,0.14684122,141.13,141.1,0.05163613]
[1741313447306,0.14684122,141.13,141.1,7.13813613]
[1741313447710,0.14684122,141.13,141.1,0.05163613]
[1741313449710,0.14684122,141.13,141.1,9.05673613]
[1741313450013,0.14684122,141.13,141.1,1.97023613]
[1741313450402,0.14684122,141.13,141.1,9.05713613]
[1741313451314,0.14684122,141.13,141.1,0.05163613]
[1741313453418,0.14684122,141.13,141.11,58.6934725]
[1741313454008,0.14684122,141.13,141.12,7.086]
[1741313454306,0.19998251,141.14,141.11,51.6074725]
[1741313454511,0.19998251,141.14,141.13,7.0855]
[1741313455011,0.19998251,141.14,141.11,51.6074725]
[1741313455212,0.19998251,141.14,141.12,7.0856]
[1741313455401,0.19998251,141.14,141.11,51.6074725]
[1741313455603,0.19998251,141.14,141.13,15.1874725]
[1741313455806,0.14506382,141.15,141.14,7.085]
[1741313457008,0.14506382,141.15,141.13,7.13289188]
[1741313457210,0.14506382,141.15,141.13,0.04759188]
[1741313457903,0.14506382,141.15,141.13,7.13259188]
[1741313458417,0.14506382,141.15,141.13,0.04759188]
[1741313458619,0.14506382,141.15,141.14,7.085]
[1741313461220,6.382e-05,141.15,141.14,7.085]
[1741313462118,6.382e-05,141.15,141.14,9.1105]
[1741313463314,0.19908181,141.16,141.15,7.0845]
[1741313463518,0.19908181,141.16,141.15,58.6319725]
[1741313465717,8.181e-05,141.16,141.15,58.6319725]
[1741313465924,0.14537011,141.18,141.17,7.0835]
[1741313466223,0.14537011,141.18,141.17,22.2709725]
[1741313466420,0.14533314,141.2,141.18,7.083]
[1741313466718,0.32652986,141.21,141.17,15.1874725]
[1741313466922,0.32883234,141.24,141.2,15.1874725]
[1741313467118,0.32883234,141.24,141.22,7.081]
[1741313467419,0.32246041,141.28,141.22,248.9274725]
[1741313467620,0.32246041,141.28,141.27,15.1874725]
[1741313467825,78.876552,141.3,141.27,51.5274725]
[1741313468215,0.19420236,141.29,141.27,51.5274725]
[1741313468417,78.876552,141.3,141.27,51.5274725]
[1741313468617,108.71754165,141.31,141.29,15.1874725]
[1741313468815,79.89504165,141.31,141.29,15.1874725]
[1741313469014,43.41404165,141.31,141.3,7.0769]
[1741313469215,32.64474165,141.31,141.3,7.0769]
[1741313469418,32.64474165,141.31,141.3,10.6169]
[1741313469619,32.64474165,141.31,141.29,15.23277542]
[1741313470026,32.64474165,141.31,141.29,18.77277542]
[1741313470220,32.64474165,141.31,141.3,7.0769]
[1741313470421,32.64474165,141.31,141.29,15.23277542]
[1741313470722,0.19480439,141.32,141.3,24.20993224]
[1741313470928,0.19480439,141.32,141.31,36.32]
[1741313471123,0.19480439,141.32,141.31,33.1952]
[1741313471323,0.19480439,141.32,141.31,26.9467]
[1741313471524,7.0765,141.31,141.29,0.04530292]
[1741313471724,0.19480439,141.32,141.29,0.04530292]
[1741313472929,0.19480439,141.32,141.3,7.0769]
[1741313473123,0.19480439,141.32,141.29,60.55523516]
[1741313475824,0.32311126,141.33,141.29,60.55523516]
[1741313476030,0.32311126,141.33,141.32,24.20993224]
[1741313476930,9.23e-05,141.34,141.33,7.0754]
[1741313477230,2.209e-05,141.34,141.33,60.46993224]
[1741313477431,2.209e-05,141.34,141.33,71.08533224]
[1741313477833,2.209e-05,141.34,141.33,46.8754]
[1741313478136,2.209e-05,141.34,141.33,71.08533224]
[1741313478332,2.209e-05,141.34,141.33,46.8754]
[1741313478534,8.252e-05,141.36,141.35,7.0744]
[1741313479125,8.252e-05,141.36,141.34,7.0749]
[1741313479324,8.252e-05,141.36,141.34,36.26]
[1741313480528,8.252e-05,141.36,141.32,0.0511249]
[1741313480728,8.252e-05,141.36,141.32,7.1270249]
[1741313481118,8.252e-05,141.36,141.32,0.0511249]
[1741313481730,9.06228252,141.36,141.32,0.0511249]
[1741313482028,1.98798252,141.36,141.32,0.0511249]
[1741313482226,8.252e-05,141.36,141.32,24.26105714]
[1741313484739,8.252e-05,141.36,141.33,7.0753]
[1741313485821,7.444e-05,141.37,141.35,24.20993224]
[1741313486027,7.444e-05,141.37,141.36,36.22]
[1741313486323,7.444e-05,141.37,141.36,43.2939]
[1741313486720,7.444e-05,141.37,141.36,36.22]
[1741313487427,9.47e-05,141.38,141.37,7.0734]
[1741313488330,4.25e-05,141.42,141.37,24.20993224]
[1741313488637,4.25e-05,141.42,141.41,24.20993224]
[1741313488836,4.25e-05,141.42,141.41,338.7114]
[1741313489743,2.003e-05,141.44,141.43,7.0704]
[1741313489942,7.204e-05,141.45,141.43,24.20993224]
[1741313490248,5.615e-05,141.49,141.43,24.20993224]
[1741313490535,5.615e-05,141.49,141.48,24.20993224]
[1741313490839,5.615e-05,141.49,141.48,67.45783224]
[1741313491342,5.615e-05,141.49,141.48,43.2479]
[1741313491735,6.225e-05,141.52,141.48,36.18]
[1741313491939,6.225e-05,141.52,141.51,24.20993224]
[1741313492240,6.225e-05,141.52,141.51,257.58993224]
[1741313492447,6.225e-05,141.52,141.51,264.65633224]
[1741313492637,6.225e-05,141.52,141.51,326.65633224]
[1741313493557,0.3315762,141.56,141.51,343.79986448]
[1741313493843,0.32539542,141.59,141.55,24.20993224]
[1741313494047,0.32539542,141.59,141.56,36.16]
[1741313494246,0.32539542,141.59,141.56,43.224]
[1741313494441,0.32539542,141.59,141.56,36.16]
[1741313494842,0.14783176,141.61,141.56,36.16]
[1741313495042,0.14783176,141.61,141.6,24.20993224]
[1741313495345,0.14783176,141.61,141.6,60.34993224]
[1741313497456,0.14783176,141.61,141.59,0.05162918]
[1741313498258,0.14783176,141.61,141.6,24.20993224]
[1741313500259,0.14783176,141.61,141.59,0.05162918]
[1741313500559,0.14783176,141.61,141.54,24.20993224]
[1741313500767,0.14783176,141.61,141.55,36.1]
[1741313500948,0.14783176,141.61,141.54,24.20993224]
[1741313501149,0.14783176,141.61,141.52,36.1]
[1741313501361,0.14783176,141.61,141.54,24.20993224]
[1741313501562,0.04705215,141.58,141.55,0.04597974]
[1741313503056,0.04705215,141.58,141.56,7.0639]
[1741313503259,0.04705215,141.58,141.56,24.20993224]
[1741313503462,0.14783176,141.61,141.56,24.20993224]
[1741313503762,0.14783176,141.61,141.57,36.08]
[1741313503966,0.14783176,141.61,141.55,0.04597974]
[1741313505868,7.20973176,141.61,141.55,7.11037974]
[1741313506262,0.14783176,141.61,141.55,0.04597974]
[1741313506971,7.062,141.6,141.55,0.04597974]
[1741313507671,7.0625,141.59,141.55,0.04597974]
[1741313507874,2.0849,141.58,141.55,0.04597974]
[1741313509075,2.0249,141.57,141.55,0.04597974]
[1741313509669,10.9998,141.57,141.51,240.446]
[1741313509872,3.936,141.57,141.51,233.38]
[1741313510778,0.04767854,141.55,141.53,0.05101922]
[1741313510974,0.04767854,141.55,141.51,233.38]
[1741313511472,0.04767854,141.55,141.5,36.04]
[1741313511682,0.04767854,141.55,141.47,60.24993224]
[1741313512070,7.11247854,141.55,141.5,7.11266833]
[1741313512279,0.04767854,141.55,141.5,0.04596833]
[1741313513470,0.04767854,141.55,141.47,36.04]
[1741313513873,7.0664,141.52,141.47,43.108]
[1741313514177,7.0664,141.52,141.47,7.068]
[1741313514364,7.0664,141.52,141.45,257.28993224]
[1741313514571,0.05154815,141.51,141.48,0.04733231]
[1741313514770,0.05154815,141.51,141.45,24.20993224]
[1741313514969,0.05154815,141.51,141.46,7.0686]
[1741313515170,0.05154815,141.51,141.45,24.20993224]
[1741313515573,0.05154815,141.51,141.47,7.0681]
[1741313515771,0.05154815,141.51,141.45,24.20993224]
[1741313515978,7.11834815,141.51,141.48,0.04824182]
[1741313516179,1.9661,141.5,141.48,0.04824182]
[1741313516384,7.11834815,141.51,141.48,0.04824182]
[1741313516582,1.9661,141.5,141.48,0.04824182]
[1741313517078,9.0331,141.5,141.45,7.0693]
[1741313517278,1.9661,141.5,141.41,36.02]
[1741313517676,7.068,141.48,141.43,7.0701]
[1741313517883,1.9661,141.5,141.41,36.02]
[1741313518083,0.05287434,141.47,141.44,0.05244488]
[1741313518572,0.05287434,141.47,141.46,7.0689]
[1741313519484,0.05287434,141.47,141.44,0.05244488]
[1741313520580,0.05287434,141.47,141.46,7.0689]
[1741313520779,0.05287434,141.47,141.44,0.05244488]
[1741313521783,0.05287434,141.47,141.4,24.20993224]
[1741313522179,7.0705,141.43,141.39,240.1723]
[1741313522383,1.9742,141.46,141.39,240.1723]
[1741313522578,1.9742,141.46,141.39,233.1]
[1741313522774,1.9742,141.46,141.38,36.02]
[1741313522982,0.05050358,141.44,141.41,0.0487312]
[1741313523183,0.05050358,141.44,141.37,9.50738148]
[1741313524284,0.05050358,141.44,141.39,0.04579397]
[1741313524986,1.9661,141.5,141.47,7.0684]
[1741313525290,1.9661,141.5,141.45,24.20993224]
[1741313525588,1.9661,141.5,141.47,7.068]
[1741313526179,2.01614151,141.5,141.48,7.0679]
[1741313526379,2.01614151,141.5,141.47,0.05379865]
[1741313526698,0.05004151,141.5,141.49,7.0674]
[1741313530092,0.05004151,141.5,141.48,67.27783224]
[1741313530977,0.05004151,141.5,141.48,36.0]
[1741313531179,0.05004151,141.5,141.47,0.05379865]
[1741313533093,0.05004151,141.5,141.48,24.20993224]
[1741313533591,0.05004151,141.5,141.49,35.98]
[1741313534485,0.05004151,141.5,141.49,43.0474]
[1741313535191,0.05004151,141.5,141.49,35.98]
[1741313535785,0.05004151,141.5,141.49,43.0474]
[1741313535988,0.05004151,141.5,141.49,35.98]
[1741313537092,0.05004151,141.5,141.48,24.20993224]
[1741313538000,0.05004151,141.5,141.49,7.0674]
[1741313539584,0.05004151,141.5,141.47,0.05379865]
[1741313541196,0.05004151,141.5,141.47,7.12209865]
[1741313541599,0.05004151,141.5,141.47,0.05379865]
[1741313542996,0.05004151,141.5,141.47,7.12189865]
[1741313543393,0.05004151,141.5,141.47,0.05379865]
[1741313543789,0.05004151,141.5,141.49,24.20993224]
[1741313543996,0.05004151,141.5,141.49,31.27733224]
[1741313544701,0.05004151,141.5,141.49,7.0674]
[1741313545601,0.05004151,141.5,141.47,60.18373089]
[1741313546105,0.05004151,141.5,141.48,7.0676]
[1741313546301,0.05004151,141.5,141.47,60.18373089]
[1741313547102,7.11704151,141.5,141.47,60.18373089]
[1741313547306,7.11704151,141.5,141.47,35.97379865]
[1741313548096,0.05004151,141.5,141.47,35.97379865]
[1741313548807,3.59004151,141.5,141.42,9.50738148]
[1741313549111,4.2978,141.49,141.42,9.50738148]
[1741313549411,7.0694,141.46,141.42,9.50738148]
[1741313550107,0.0449748,141.45,141.43,0.04825685]
[1741313550303,7.1144748,141.45,141.43,0.04825685]
[1741313550609,0.0449748,141.45,141.43,0.04825685]
[1741313552210,0.0449748,141.45,141.43,35.94825685]
[1741313553514,0.0449748,141.45,141.44,7.0699]
[1741313554005,7.48e-05,141.45,141.44,7.0699]
[1741313554406,4.3061,141.52,141.43,35.94825685]
[1741313554603,4.3061,141.52,141.45,24.20993224]
[1741313554799,2.1256,141.55,141.48,24.20993224]
[1741313555111,2.1256,141.55,141.53,7.0654]
[1741313555410,2.1256,141.55,141.48,24.20993224]
[1741313555611,2.1747664,141.55,141.53,0.04496063]
[1741313555808,2.1747664,141.55,141.5,7.0669]
[1741313556106,9.2393664,141.55,141.53,0.05136745]
[1741313556410,2.1747664,141.55,141.53,0.05136745]
[1741313556911,0.0491664,141.55,141.54,7.0649]
[1741313557103,0.0491664,141.55,141.53,0.05136745]
[1741313558897,0.0491664,141.55,141.53,7.11656745]
[1741313559107,0.0491664,141.55,141.53,0.05136745]
[1741313560109,0.0491664,141.55,141.54,7.0649]
[1741313563513,0.0491664,141.55,141.53,0.05136745]
[1741313564820,7.0655,141.53,141.47,35.82]
[1741313565014,0.0491664,141.55,141.47,35.82]
[1741313565214,2.0162,141.56,141.47,35.82]
[1741313566114,0.05113293,141.53,141.52,7.0659]
[1741313566310,0.05113293,141.53,141.5,0.05016765]
[1741313567122,0.05113293,141.53,141.5,7.11686765]
[1741313567422,0.05113293,141.53,141.5,0.05016765]
[1741313568918,0.05113293,141.53,141.51,7.0662]
[1741313569121,0.05113293,141.53,141.51,35.82]
[1741313569322,0.05113293,141.53,141.52,7.0659]
[1741313569517,0.05113293,141.53,141.51,35.82]
[1741313573228,0.05113293,141.53,141.52,7.0659]
[1741313574523,3.293e-05,141.53,141.52,7.0659]
[1741313575531,3.293e-05,141.53,141.5,7.11706765]
[1741313576943,3.293e-05,141.53,141.5,0.05016765]
[1741313577134,7.06553293,141.53,141.5,0.05016765]
[1741313577328,3.293e-05,141.53,141.5,0.05016765]
[1741313577529,4.1417,141.52,141.5,0.05016765]
[1741313577732,7.0664,141.51,141.5,0.05016765]
[1741313578138,2.0094,141.52,141.5,0.05016765]
[1741313578632,2.0094,141.52,141.45,240.2693]
[1741313578633,7.0671,141.5,141.45,240.2693]
[1741313578935,4.1928,141.52,141.45,268.98]
[1741313579542,2.0094,141.52,141.45,268.98]
[1741313579931,0.04840563,141.5,141.47,24.25584684]
[1741313580240,0.04840563,141.5,141.48,7.0679]
[1741313580540,0.04840563,141.5,141.47,0.0459146]
[1741313581233,0.04840563,141.5,141.47,7.1139146]
[1741313581438,0.04840563,141.5,141.47,0.0459146]
[1741313581839,7.0677,141.49,141.47,0.0459146]
[1741313582040,0.04840563,141.5,141.41,1.9825]
[1741313582342,7.0695,141.45,141.41,7.0713]
[1741313582742,7.0695,141.45,141.39,330.41846588]
[1741313582929,7.0702,141.44,141.39,104.35076588]
[1741313583131,24.20993224,141.49,141.39,97.27846588]
[1741313583332,0.04945472,141.43,141.4,7.12481552]
[1741313583736,2.1146,141.48,141.4,9.50738148]
[1741313583929,0.05354852,141.43,141.4,9.55700555]
[1741313585340,7.12444852,141.43,141.4,9.55700555]
[1741313585541,0.05354852,141.43,141.4,9.55700555]
[1741313586339,0.05354852,141.43,141.4,33.76693779]
[1741313586540,0.05354852,141.43,141.42,7.0709]
[1741313586943,4.852e-05,141.43,141.42,7.0709]
[1741313587133,2.0968,141.53,141.42,3.54]
[1741313587340,2.0968,141.53,141.45,24.20993224]
[1741313587539,2.0968,141.53,141.46,35.76]
[1741313587739,7.0669,141.51,141.45,31.27933224]
[1741313587940,39.9677,141.53,141.45,24.20993224]
[1741313588144,0.04648557,141.5,141.48,0.04618916]
[1741313588343,0.04648557,141.5,141.42,293.14993224]
[1741313588549,0.04648557,141.5,141.43,7.0701]
[1741313588752,35.74,141.49,141.39,59.94993224]
[1741313589448,0.05390838,141.45,141.43,0.04509639]
[1741313591353,0.05390838,141.45,141.37,35.74]
[1741313591543,194.0,141.48,141.37,35.74]
[1741313592044,7.0703,141.44,141.37,35.74]
[1741313592646,0.05045608,141.42,141.39,0.04890869]